bitfinex-derivatives/quotes_ETHF0:USTF0_20250904
["timestamp","ask_amount","ask_price","bid_price","bid_amount"]
[1756964928002,1.24044958,4370.9,4370.5,0.1198]
[1756964928202,1.24044958,4370.8,4370.7,0.4258]
[1756964928405,1.24044958,4370.8,4370.7,2.5687844]
[1756964928805,1.24044958,4370.8,4370.7,0.9259]
[1756964929600,1.24044958,4370.8,4370.7,0.4258]
[1756964929794,1.24044958,4370.8,4370.7,0.234]
[1756964930804,0.2876,4370.7,4370.6,2.1351844]
[1756964931004,1.24044958,4370.7,4370.6,2.1351844]
[1756964931305,0.55104958,4370.7,4370.6,2.3347844]
[1756964934406,0.74424958,4370.7,4370.6,2.3347844]
[1756964934603,1.24044958,4370.7,4370.6,0.6919]
[1756964934823,0.95284958,4370.7,4370.4,0.234]
[1756964935002,0.6894,4370.5,4370.4,0.7263]
[1756964935308,1.24044958,4370.5,4370.4,0.9259]
[1756964938408,0.55104958,4370.5,4370.4,0.9259]
[1756964938612,0.74424958,4370.5,4370.4,0.9259]
[1756964939506,0.55104958,4370.5,4370.4,0.9259]
[1756964940810,0.74424958,4370.5,4370.4,0.9259]
[1756964941016,0.55104958,4370.5,4370.4,0.9259]
[1756964941309,0.2876,4371.4,4371.0,0.1235]
[1756964941613,1.24001104,4371.3,4371.2,0.6919]
[1756964942207,0.95241104,4371.3,4371.2,0.6919]
[1756964942406,0.95241104,4371.3,4371.2,0.9259]
[1756964942618,0.95241104,4371.3,4371.1,1.6428844]
[1756964942817,0.95241104,4371.2,4370.8,1.9433844]
[1756964943018,0.6894,4370.9,4370.8,0.203]
[1756964943209,1.24001104,4370.9,4370.8,0.203]
[1756964944145,0.95241104,4370.9,4370.6,1.6428844]
[1756964944413,0.6894,4370.7,4370.6,1.9433844]
[1756964944614,0.6894,4370.7,4370.6,1.6428844]
[1756964944615,1.24001104,4370.7,4370.6,1.6428844]
[1756964945213,0.2876,4370.6,4370.4,0.4258]
[1756964945406,1.24001104,4370.5,4370.4,0.7263]
[1756964945611,1.06811104,4370.5,4369.6,1.9433844]
[1756964945811,0.6894,4369.8,4369.7,0.7263]
[1756964946011,0.6894,4369.8,4369.7,0.9259]
[1756964946012,1.24001104,4369.8,4369.7,0.9259]
[1756964946615,0.95241104,4369.8,4369.3,1.6428844]
[1756964946919,1.24001104,4369.7,4369.6,2.1351844]
[1756964947211,1.24001104,4369.7,4369.6,2.3347844]
[1756964947420,0.74381104,4369.7,4369.6,2.3347844]
[1756964948417,1.24001104,4369.7,4369.6,2.3347844]
[1756964949917,1.24001104,4369.7,4369.6,0.6919]
[1756964950117,1.24001104,4369.7,4369.4,1.8768844]
[1756964950323,0.6894,4369.5,4369.4,2.3691844]
[1756964950520,1.24001104,4369.5,4369.4,2.3691844]
[1756964950749,1.24001104,4369.5,4369.4,2.5687844]
[1756964951720,0.95241104,4369.5,4369.4,2.5687844]
[1756964952114,0.74381104,4369.5,4369.4,2.5687844]
[1756964952518,0.55061104,4369.5,4369.4,2.5687844]
[1756964952720,0.3066,4370.1,4369.5,0.1214]
[1756964952921,0.7149,4370.1,4370.0,0.5123]
[1756964953119,1.26493996,4370.1,4370.0,0.5123]
[1756964954212,0.55003996,4370.1,4370.0,1.0602]
[1756964954416,0.3066,4370.8,4370.1,0.3114]
[1756964954614,0.7149,4370.4,4370.3,0.2009]
[1756964954826,1.26505064,4370.4,4370.3,0.2009]
[1756964955023,1.26505064,4370.4,4370.3,0.3934]
[1756964955225,1.26505064,4370.4,4370.3,0.7048]
[1756964956230,0.95845064,4370.4,4370.3,0.7048]
[1756964956727,0.76243607,4370.4,4370.3,0.7048]
[1756964958323,1.26643607,4370.4,4370.3,0.7048]
[1756964959130,0.95983607,4370.4,4370.3,0.7048]
[1756964959522,1.26643607,4370.4,4370.3,0.7048]
[1756964961524,0.76243607,4370.4,4370.3,0.7048]
[1756964962539,0.55153607,4370.4,4370.3,0.7048]
[1756964963539,0.76243607,4370.4,4370.3,0.7048]
[1756964965337,1.26643607,4370.4,4370.3,0.7048]
[1756964965636,0.7149,4370.3,4370.2,0.7463]
[1756964965834,1.26643607,4370.3,4370.2,0.9388]
[1756964967937,0.95983607,4370.3,4370.2,0.9388]
[1756964968536,1.26643607,4370.3,4370.2,0.9388]
[1756964968833,0.76243607,4370.3,4370.2,2.94483394]
[1756964969032,1.26643607,4370.3,4370.2,2.94483394]
[1756964969545,0.95983607,4370.3,4370.2,2.94483394]
[1756964970339,0.55153607,4370.3,4370.2,2.94483394]
[1756964970730,0.7149,4371.0,4370.9,0.2009]
[1756964971034,1.26714338,4371.0,4370.9,0.5123]
[1756964972023,1.26714338,4371.0,4370.6,0.3114]
[1756964972227,1.26714338,4371.0,4370.5,0.3114]
[1756964972228,0.3066,4370.6,4370.5,0.3114]
[1756964972427,1.26714338,4370.6,4370.5,0.5123]
[1756964973241,1.26714338,4370.6,4370.5,0.7048]
[1756964973737,1.26714338,4370.6,4370.5,0.8262]
[1756964974635,1.26714338,4370.6,4370.5,0.5123]
[1756964975434,1.26714338,4370.6,4370.3,0.3114]
[1756964975636,0.74964338,4370.5,4370.4,0.2009]
[1756964975831,1.26714338,4370.5,4370.4,0.7048]
[1756964977530,0.3066,4370.4,4370.2,0.3114]
[1756964977729,0.7149,4369.8,4369.7,2.71083394]
[1756964978039,0.2109,4370.0,4369.9,0.6274]
[1756964978432,0.2109,4370.0,4369.9,0.9388]
[1756964978638,0.76337933,4370.0,4369.9,0.9388]
[1756964979333,0.76337933,4370.0,4369.9,0.234]
[1756964979526,1.19257933,4370.0,4369.9,0.528]
[1756964979742,1.38997933,4370.0,4369.9,0.381]
[1756964980339,1.38997933,4370.0,4369.9,0.528]
[1756964981740,1.38997933,4370.0,4369.9,0.381]
[1756964982135,1.38997933,4370.0,4369.9,0.147]
[1756964986243,1.38997933,4370.0,4369.9,0.2953]
[1756964986442,0.55247933,4370.0,4369.9,0.61684]
[1756964986745,0.3004,4370.4,4370.1,0.2966]
[1756964986938,0.55317548,4370.3,4370.2,0.234]
[1756964987138,0.74637548,4370.3,4370.2,0.5306]
[1756964987532,1.24327548,4370.3,4370.2,0.5306]
[1756964989246,0.85357548,4370.3,4370.2,0.5306]
[1756964989478,0.85357548,4370.3,4370.2,0.6233]
[1756964990041,0.3004,4370.3,4370.2,0.6233]
[1756964991442,0.1155,4370.5,4370.2,0.6233]
[1756964991642,0.4159,4370.5,4370.4,2.39533394]
[1756964991846,0.55241921,4371.4,4370.4,2.30263394]
[1756964992149,0.85282721,4370.9,4370.8,0.3893]
[1756964992345,0.85282721,4370.9,4370.8,0.6233]
[1756964992943,1.04602721,4370.9,4370.8,0.6233]
[1756964993146,1.04602721,4370.9,4370.8,2.53663394]
[1756964994653,1.04602721,4370.9,4370.8,2.62933394]
[1756964995042,0.85282721,4370.9,4370.8,2.62933394]
[1756964995444,0.1157,4371.5,4370.8,2.62933394]
[1756964995650,0.94171862,4371.4,4371.3,0.1483]
[1756964995844,0.94171862,4371.4,4371.3,0.5306]
[1756964996246,1.24211862,4371.4,4371.3,0.5306]
[1756964996852,1.24211862,4371.4,4371.3,2.53663394]
[1756964999246,1.24211862,4371.4,4371.3,2.38833394]
[1756964999447,0.6901,4371.4,4371.3,2.38833394]
[1756964999752,0.6901,4371.4,4371.3,2.53663394]
[1756965000747,0.4936,4371.4,4371.3,2.53663394]
[1756965001058,0.6901,4371.4,4371.3,2.38833394]
[1756965001347,0.4936,4371.4,4371.3,2.53663394]
[1756965001554,0.3004,4371.4,4371.3,2.62933394]
[1756965002349,0.4936,4371.4,4371.3,2.62933394]
[1756965002547,0.4936,4371.4,4371.3,2.53663394]
[1756965003554,0.4936,4371.4,4371.3,2.62933394]
[1756965004569,0.4936,4371.4,4371.3,2.53663394]
[1756965004570,0.6901,4371.4,4371.3,2.53663394]
[1756965004761,0.6901,4371.4,4371.3,0.234]
[1756965004953,0.6901,4371.4,4371.3,0.3823]
[1756965005150,0.6901,4371.4,4371.3,0.5306]
[1756965006153,0.4936,4371.4,4371.3,0.5306]
[1756965006357,0.3004,4371.4,4371.3,0.6233]
[1756965008055,0.1157,4371.5,4371.3,0.5306]
[1756965008253,0.4161,4371.5,4371.4,2.39533394]
[1756965008752,0.6093,4371.5,4371.4,2.39533394]
[1756965008965,0.8058,4371.5,4371.4,2.30263394]
[1756965010055,0.4161,4371.5,4371.4,2.39533394]
[1756965010456,0.3004,4371.5,4371.4,2.39533394]
[1756965011463,0.3004,4371.9,4371.4,2.39533394]
[1756965011664,0.3004,4371.9,4371.8,2.39533394]
[1756965011963,0.3004,4371.9,4371.8,2.62933394]
[1756965012457,0.6928,4371.9,4371.8,2.53663394]
[1756965012963,0.4936,4371.9,4371.8,2.53663394]
[1756965014162,0.4936,4371.9,4371.8,2.62863394]
[1756965014456,0.3004,4371.9,4371.8,2.62863394]
[1756965014663,0.5098,4371.9,4371.8,2.53663394]
[1756965015965,0.709,4371.9,4371.8,2.53663394]
[1756965017451,0.3004,4371.9,4371.8,2.26334372]
[1756965018080,0.5258,4372.4,4372.3,0.2944]
[1756965018260,0.5258,4372.4,4372.3,2.16914372]
[1756965018664,0.5258,4372.4,4372.3,0.5284]
[1756965018965,0.725,4372.4,4372.3,0.5284]
[1756965019862,0.5258,4372.4,4372.3,0.5284]
[1756965020164,0.3164,4372.4,4372.3,0.6204]
[1756965020462,0.1203,4373.0,4372.3,0.6204]
[1756965020665,0.8453,4373.0,4372.9,1.64074372]
[1756965020862,1.39690105,4373.0,4372.9,2.02194372]
[1756965022866,1.39690105,4373.0,4372.9,1.87474372]
[1756965024368,1.39690105,4373.0,4372.9,1.64074372]
[1756965024667,1.39690105,4373.0,4372.9,1.87474372]
[1756965025668,1.39690105,4373.0,4372.9,2.02194372]
[1756965026266,1.39690105,4373.0,4372.9,1.87474372]
[1756965026667,1.39690105,4373.0,4372.9,0.234]
[1756965026971,1.39690105,4373.0,4372.9,1.87474372]
[1756965027157,7.03764477,4373.0,4372.3,1.64074372]
[1756965027359,0.3164,4372.3,4372.0,1.64074372]
[1756965027563,0.96092483,4372.2,4372.1,0.195]
[1756965027862,0.725,4372.1,4372.0,1.64074372]
[1756965028263,1.27743041,4372.1,4372.0,1.64074372]
[1756965030771,0.4086,4371.8,4371.7,1.64074372]
[1756965031074,0.725,4371.8,4371.7,1.64074372]
[1756965031268,1.27733256,4371.8,4371.7,1.64074372]
[1756965031468,1.07813256,4371.8,4371.7,1.93634372]
[1756965031669,0.725,4371.8,4371.7,1.93634372]
[1756965032274,1.27757296,4371.8,4371.7,1.93634372]
[1756965032574,1.27757296,4371.8,4371.7,0.2956]
[1756965032804,1.27757296,4371.8,4371.6,0.234]
[1756965032979,0.1213,4371.5,4371.4,1.64074372]
[1756965033173,0.6471,4371.5,4371.4,1.93634372]
[1756965033375,0.4377,4371.5,4371.4,2.02874372]
[1756965033878,0.4377,4372.0,4371.5,0.0924]
[1756965034067,0.1213,4372.5,4372.3,0.2956]
[1756965034068,0.5258,4372.4,4372.3,0.2956]
[1756965034267,1.27764161,4372.4,4372.3,1.93634372]
[1756965034466,1.27764161,4372.4,4372.3,1.64074372]
[1756965034673,1.27764161,4372.4,4372.3,1.78854372]
[1756965035578,1.27764161,4372.4,4372.3,1.93634372]
[1756965036668,1.07844161,4372.4,4372.3,1.93634372]
[1756965036869,0.5258,4372.4,4372.3,1.93634372]
[1756965037069,0.725,4372.4,4372.3,1.93634372]
[1756965037264,0.725,4372.4,4372.3,1.64074372]
[1756965037473,1.2778532,4372.4,4372.3,1.64074372]
[1756965037775,1.2778532,4372.4,4372.3,1.78854372]
[1756965037979,1.0786532,4372.4,4372.3,1.93634372]
[1756965038474,1.2778532,4372.4,4372.3,1.64074372]
[1756965039076,0.725,4372.4,4372.3,1.78854372]
[1756965039268,1.2776678,4372.4,4372.3,1.78854372]
[1756965040475,1.2776678,4372.4,4372.3,1.64074372]
[1756965040879,1.2776678,4372.4,4372.0,1.64074372]
[1756965040880,0.725,4372.1,4372.0,1.64074372]
[1756965041076,0.725,4371.8,4371.7,1.64074372]
[1756965041383,0.725,4371.7,4371.6,1.64074372]
[1756965041568,0.725,4371.7,4371.6,1.78854372]
[1756965041996,1.27749077,4371.7,4371.6,1.64074372]
[1756965042183,0.7072,4371.4,4371.3,1.64074372]
[1756965042470,0.7072,4371.4,4371.3,1.93534372]
[1756965044572,0.7072,4371.4,4371.3,1.78804372]
[1756965044780,0.7072,4371.4,4371.3,1.64074372]
[1756965045874,0.7072,4371.4,4371.3,1.78804372]
[1756965046280,0.7072,4371.4,4371.3,1.93534372]
[1756965048188,0.5135,4371.4,4371.3,2.02744372]
[1756965048382,0.3024,4371.4,4371.3,2.02744372]
[1756965050080,0.5135,4371.4,4371.3,1.93534372]
[1756965051192,0.5135,4371.4,4371.3,2.26044372]
[1756965051483,0.3024,4371.4,4371.3,2.26044372]
[1756965052587,0.7072,4371.4,4371.3,1.93534372]
[1756965052789,0.7072,4371.4,4371.3,1.78804372]
[1756965052992,0.7072,4371.4,4371.3,2.02104372]
[1756965053482,0.7072,4371.4,4371.3,2.16834372]
[1756965053988,0.5135,4371.4,4371.3,2.16834372]
[1756965054296,0.3024,4371.4,4371.3,2.26044372]
[1756965054487,0.1213,4372.0,4371.3,2.26044372]
[1756965054788,0.55138457,4371.9,4371.7,0.3867]
[1756965054983,0.76248457,4371.8,4371.7,0.2946]
[1756965055376,1.06488457,4371.8,4371.7,0.2946]
[1756965055781,1.06488457,4371.8,4371.7,1.93534372]
[1756965056181,1.06488457,4371.8,4371.7,2.02744372]
[1756965056997,0.85378457,4371.8,4371.7,2.02744372]
[1756965060400,1.06488457,4371.8,4371.7,1.93534372]
[1756965062302,1.25858457,4371.8,4371.7,1.93534372]
[1756965062600,1.25858457,4371.8,4371.7,2.02104372]
[1756965062901,1.25858457,4371.8,4371.7,2.16834372]
[1756965065605,1.25858457,4371.8,4370.9,0.0921]
[1756965065801,0.1213,4372.0,4371.0,0.5276]
[1756965065802,0.5135,4371.1,4371.0,0.5276]
[1756965066199,0.5135,4371.1,4371.0,0.6197]
[1756965066502,0.5135,4371.1,4371.0,0.5276]
[1756965067302,0.5135,4371.1,4370.1,0.41174]
[1756965067303,0.6336,4370.0,4369.5,0.0921]
[1756965067491,0.6336,4370.0,4368.1,2.291]
[1756965067492,0.5249,4370.0,4369.8,1.64074372]
[1756965067700,0.7072,4369.9,4369.8,1.64074372]
[1756965068392,0.7072,4369.9,4369.8,1.78804372]
[1756965068796,0.4048,4369.9,4369.5,1.64074372]
[1756965068996,0.4048,4369.9,4369.3,0.233]
[1756965068997,0.7072,4369.4,4369.3,0.1473]
[1756965069202,0.1201,4369.5,4368.0,1.83284372]
[1756965069203,0.1201,4369.0,4368.9,1.87374372]
[1756965069391,0.8273,4369.0,4368.9,1.87374372]
[1756965070104,0.8273,4369.0,4368.9,0.233]
[1756965070298,0.4048,4368.4,4368.3,1.64074372]
[1756965070497,0.7072,4368.4,4368.3,1.87374372]
[1756965072317,0.7072,4368.4,4368.3,2.02104372]
[1756965072809,0.7072,4368.4,4368.3,2.16874372]
[1756965073104,0.2964,4369.2,4369.1,0.2954]
[1756965073299,0.4874,4369.2,4369.1,1.93614372]
[1756965073500,0.6868,4369.2,4369.1,1.93614372]
[1756965074095,0.4874,4369.2,4369.1,1.93614372]
[1756965074301,0.4874,4369.2,4369.1,0.2954]
[1756965074507,0.4874,4369.2,4369.1,1.93614372]
[1756965076600,0.2964,4369.4,4369.1,1.93614372]
[1756965076800,0.2964,4369.7,4369.4,0.3874]
[1756965077000,0.1201,4370.0,4369.9,0.1476]
[1756965077001,0.5105,4370.0,4369.9,0.1476]
[1756965077205,0.5105,4370.0,4369.5,1.87374372]
[1756965077605,0.191,4369.6,4369.5,2.16894372]
[1756965077910,0.4874,4369.6,4369.5,2.16894372]
[1756965078105,0.2964,4369.6,4369.5,2.16894372]
[1756965078315,0.2964,4369.6,4369.5,2.26114372]
[1756965079402,0.2964,4369.6,4369.5,2.62676996]
[1756965079640,0.4874,4369.6,4369.5,0.5282]
[1756965079912,0.2964,4369.6,4369.5,0.6204]
[1756965080209,0.1201,4370.0,4369.8,0.3874]
[1756965080210,0.2964,4369.9,4369.8,0.3874]
[1756965080413,0.4108,4370.2,4370.1,0.3874]
[1756965080617,0.2964,4370.2,4370.1,0.3874]
[1756965081816,0.4874,4370.2,4370.1,0.2952]
[1756965082114,0.2964,4370.2,4370.1,0.6204]
[1756965082718,0.6868,4370.2,4370.1,0.5282]
[1756965084841,0.4874,4370.2,4370.1,0.6204]
[1756965085215,0.2964,4370.2,4370.1,0.6204]
[1756965085614,0.1144,4370.4,4370.3,0.2952]
[1756965085922,0.2964,4370.9,4370.3,2.30156996]
[1756965086120,0.2964,4370.9,4370.8,2.00636996]
[1756965086318,0.2964,4370.9,4370.8,2.23936996]
[1756965087719,0.4874,4370.9,4370.8,2.23936996]
[1756965088108,0.4874,4370.9,4369.9,2.41812996]
[1756965088109,0.6868,4370.9,4369.9,0.1856744]
[1756965088313,0.3154,4370.5,4370.3,2.00636996]
[1756965088520,0.2964,4370.4,4370.3,2.00636996]
[1756965088708,0.4874,4370.4,4370.3,2.00636996]
[1756965092325,0.4874,4370.4,4370.3,2.23936996]
[1756965094023,0.6868,4370.4,4370.3,2.00636996]
[1756965094338,0.1994,4369.2,4369.1,2.00636996]
[1756965094625,0.1994,4369.2,4369.1,2.23936996]
[1756965094626,0.6868,4369.2,4369.1,2.23936996]
[1756965095030,0.6868,4369.2,4369.1,0.233]
[1756965095427,0.4874,4368.4,4368.3,2.00636996]
[1756965095629,0.4874,4368.4,4368.3,2.23936996]
[1756965095825,0.2964,4368.4,4368.3,2.23936996]
[1756965097423,0.2964,4368.4,4368.3,0.233]
[1756965099324,0.1244,4368.5,4368.3,0.233]
[1756965099527,0.2964,4368.9,4368.3,0.233]
[1756965099831,0.4874,4368.9,4368.3,0.233]
[1756965101130,0.2964,4368.9,4368.5,6.84110454]
[1756965102026,0.3009,4368.9,4368.5,6.84110454]
[1756965102624,0.1244,4369.0,4368.5,6.84110454]
[1756965102823,0.3009,4368.9,4368.5,6.84110454]
[1756965104545,0.3009,4368.9,4368.6,0.233]
[1756965104722,0.7007,4368.7,4368.6,0.233]
[1756965106927,0.7007,4368.7,4368.0,0.1]
[1756965107233,0.7007,4368.7,4368.1,0.233]
[1756965107426,0.122,4368.5,4368.1,0.233]
[1756965107631,0.3009,4368.4,4368.1,0.233]
[1756965108031,0.3302,4368.5,4368.1,0.233]
[1756965108227,0.3009,4368.4,4368.1,0.233]
[1756965110426,0.122,4368.5,4368.1,0.233]
[1756965110732,0.3009,4368.4,4368.1,0.233]
[1756965111835,0.122,4368.5,4368.1,0.233]
[1756965112033,0.3302,4368.5,4368.1,0.233]
[1756965112233,0.3009,4368.4,4368.1,0.233]
[1756965113428,0.122,4368.5,4368.1,0.233]
[1756965113635,0.3009,4368.4,4368.1,0.233]
[1756965114530,0.122,4368.5,4368.1,0.233]
[1756965114835,0.2082,4368.4,4368.1,0.233]
[1756965115030,0.3009,4368.4,4368.1,0.233]
[1756965115333,0.122,4368.5,4368.1,0.233]
[1756965115533,0.4229,4368.5,4368.1,0.233]
[1756965115735,0.3009,4368.4,4368.1,0.64493]
[1756965116035,0.3009,4368.4,4368.1,0.233]
[1756965117131,0.3009,4368.9,4368.4,0.4119]
[1756965117427,0.3009,4368.9,4368.8,2.00640288]
[1756965117623,0.5091,4368.9,4368.8,2.23940288]
[1756965118034,0.7007,4368.9,4368.8,2.23940288]
[1756965118433,0.3009,4368.9,4368.8,2.23940288]
[1756965119634,0.2082,4369.5,4369.4,0.3838]
[1756965119831,0.5242,4370.0,4369.9,0.1918]
[1756965120030,0.5242,4370.0,4369.9,2.43120288]
[1756965120657,0.5242,4370.0,4369.9,2.92430288]
[1756965120936,0.5218,4370.5,4370.4,0.3838]
[1756965121138,0.5218,4370.5,4370.4,2.43120288]
[1756965121331,0.5218,4370.5,4370.4,2.23940288]
[1756965121730,0.8227,4370.5,4370.4,2.23940288]
[1756965121929,0.8227,4370.5,4370.4,2.43120288]
[1756965122934,0.8227,4370.5,4370.4,2.92430288]
[1756965122935,0.3009,4370.5,4370.4,2.92430288]
[1756965123236,0.5218,4371.0,4370.9,0.3838]
[1756965123461,0.5218,4371.0,4370.9,2.62320288]
[1756965123840,0.8227,4371.0,4370.9,2.62320288]
[1756965126140,0.7007,4371.0,4370.9,2.92430288]
[1756965126337,0.8227,4371.0,4370.9,2.62320288]
[1756965127040,0.8227,4371.0,4370.9,2.92430288]
[1756965128333,0.8227,4371.0,4370.9,2.62320288]
[1756965128736,0.8227,4371.0,4370.6,2.00640288]
[1756965128935,0.7007,4370.8,4370.7,0.233]
[1756965130244,0.7007,4370.8,4370.7,0.4248]
[1756965131031,0.7007,4370.8,4370.7,0.233]
[1756965131439,0.3998,4370.8,4370.6,2.00640288]
[1756965131652,0.3998,4370.8,4369.6,0.41179]
[1756965131653,0.3998,4369.9,4369.8,2.00640288]
[1756965131870,0.7007,4369.9,4369.8,2.43120288]
[1756965134342,0.7007,4369.9,4369.8,2.19820288]
[1756965134544,0.7007,4369.9,4368.5,0.3009]
[1756965134747,0.122,4370.0,4369.1,2.40370288]
[1756965134748,0.6977,4369.2,4369.1,2.40370288]
[1756965134958,0.6977,4369.2,4369.1,2.63670288]
[1756965136645,0.3857,4369.2,4368.3,33.2577]
[1756965136853,0.3857,4368.9,4368.8,2.00640288]
[1756965137049,0.6977,4368.9,4368.8,2.23940288]
[1756965137846,0.6977,4368.9,4368.8,2.44110288]
[1756965138243,0.6977,4368.9,4368.8,2.93840288]
[1756965138539,0.1203,4369.5,4368.8,2.63670288]
[1756965138540,0.312,4369.4,4368.8,2.63670288]
[1756965138849,0.6977,4369.4,4369.3,2.40370288]
[1756965139037,0.6977,4369.4,4369.3,2.63670288]
[1756965139242,0.6977,4369.4,4369.3,2.44110288]
[1756965139478,0.6977,4369.4,4369.3,2.07743203]
[1756965141276,0.6977,4369.4,4369.3,1.87573203]
[1756965143051,0.6977,4369.4,4369.0,1.64273203]
[1756965143247,0.3857,4369.2,4369.1,0.233]
[1756965143449,0.6977,4369.2,4369.1,0.233]
[1756965145146,0.6977,4369.2,4369.1,0.6303]
[1756965148253,0.6977,4369.2,4369.1,0.932]
[1756965148553,0.3125,4369.5,4369.4,0.699]
[1756965148855,0.3125,4369.5,4369.4,2.57473203]
[1756965149150,0.6245,4369.5,4369.4,2.57473203]
[1756965149353,0.818,4369.5,4369.4,1.64273203]
[1756965149549,0.818,4369.5,4369.4,1.87573203]
[1756965150157,0.818,4369.5,4369.4,0.233]
[1756965150550,0.312,4369.4,4369.3,0.233]
[1756965150856,0.6977,4369.4,4369.3,0.233]
[1756965151659,0.6977,4369.4,4369.3,0.4347]
[1756965151957,0.6977,4369.4,4369.3,0.233]
[1756965152160,0.6977,4369.4,4369.3,0.6303]
[1756965153278,0.312,4369.4,4369.3,0.932]
[1756965155151,0.6977,4369.4,4368.7,0.3017]
[1756965155353,0.1203,4369.5,4368.7,0.3017]
[1756965155354,0.312,4369.3,4369.2,1.64273203]
[1756965155552,0.6977,4369.3,4369.2,1.64273203]
[1756965155756,0.6977,4369.3,4369.2,1.84443203]
[1756965156364,0.6977,4369.3,4369.2,1.64273203]
[1756965156560,0.6977,4369.3,4369.2,1.87573203]
[1756965158081,0.6977,4369.3,4369.2,0.233]
[1756965160263,0.506,4368.5,4368.4,0.2017]
[1756965160462,0.818,4368.5,4368.4,2.07743203]
[1756965162269,0.818,4368.5,4368.4,1.87573203]
[1756965164873,0.818,4368.5,4368.4,2.06833203]
[1756965166275,0.818,4368.5,4368.4,2.26413203]
[1756965166867,0.818,4368.5,4368.4,2.56523203]
[1756965167368,0.6245,4368.5,4368.4,2.56523203]
[1756965167875,0.8244,4368.5,4368.4,2.26413203]
[1756965168972,0.4066,4368.2,4368.1,1.83533203]
[1756965169174,0.7074,4368.2,4368.1,2.06833203]
[1756965169675,0.7074,4368.2,4368.0,1.74273203]
[1756965169877,0.7074,4368.2,4368.1,0.233]
[1756965170868,0.7074,4368.2,4368.1,0.4256]
[1756965172974,0.7074,4368.2,4368.1,0.233]
[1756965173166,6.35013203,4368.2,4368.0,0.1]
[1756965174170,0.63553,4368.1,4368.0,0.1]
[1756965174377,0.7074,4368.1,4368.0,0.1]
[1756965177908,0.7074,4368.1,4368.0,0.2926]
[1756965178872,0.7074,4368.1,4368.0,0.1]
[1756965179988,0.7074,4368.1,4368.0,2.13113203]
[1756965180273,0.1203,4368.5,4368.0,2.43223203]
[1756965180581,0.8277,4368.5,4368.4,2.03113203]
[1756965181082,0.8277,4368.5,4368.4,0.6895]
[1756965182090,0.8277,4368.5,4368.4,0.3884]
[1756965182275,0.6278,4368.5,4368.4,0.6895]
[1756965182468,0.8277,4368.5,4368.4,0.3884]
[1756965183781,0.8277,4368.5,4368.4,0.6895]
[1756965184384,0.8277,4368.5,4368.4,0.3884]
[1756965184879,0.8277,4368.5,4368.4,0.1926]
[1756965185877,0.8277,4368.5,4368.3,1.64273203]
[1756965186087,0.3008,4368.4,4368.3,1.64273203]
[1756965186384,0.7074,4368.4,4368.3,1.64273203]
[1756965186684,0.7074,4368.4,4368.3,1.83533203]
[1756965186885,0.7074,4368.4,4368.3,2.06833203]
[1756965188579,0.4066,4368.4,4368.0,1.74273203]
[1756965188783,0.7074,4368.1,4368.0,0.2926]
[1756965188983,0.7074,4368.1,4368.0,0.1]
[1756965189179,1.25832058,4368.1,4368.0,0.1]
[1756965189777,1.25832058,4368.1,4368.0,0.2926]
[1756965189982,0.7074,4368.1,4368.0,0.2926]
[1756965190285,1.25847588,4368.1,4368.0,0.4884]
[1756965191399,0.1203,4368.5,4368.0,0.7895]
[1756965191595,0.95772839,4368.4,4368.3,2.03113203]
[1756965192092,1.27272839,4368.4,4368.3,2.03113203]
[1756965193107,1.07282839,4368.4,4368.3,2.33233203]
[1756965193283,0.5217,4368.4,4368.3,2.33233203]
[1756965193889,0.7144,4368.4,4368.3,2.03113203]
[1756965194292,0.7144,4368.4,4368.3,2.33213203]
[1756965194492,0.5217,4368.4,4368.3,2.33213203]
[1756965194793,0.7092,4368.9,4368.8,0.1943]
[1756965194981,1.26048344,4368.9,4368.8,0.1943]
[1756965195184,1.26048344,4368.9,4368.8,0.6888]
[1756965195380,0.86628344,4368.9,4368.8,0.6888]
[1756965195790,0.86628344,4368.9,4368.8,2.33153203]
[1756965196994,1.06778344,4368.9,4368.8,2.33153203]
[1756965197189,0.1227,4368.5,4368.4,0.301]
[1756965197394,0.8319,4368.5,4368.4,2.33153203]
[1756965197697,0.6392,4368.5,4368.4,2.56453203]
[1756965197888,0.5165,4368.5,4368.4,2.56453203]
[1756965198085,0.315,4368.5,4368.4,2.56453203]
[1756965200388,0.5165,4368.5,4368.4,2.56453203]
[1756965200586,0.8319,4368.5,4368.4,2.26353203]
[1756965200819,0.8319,4368.5,4368.4,2.03053203]
[1756965200989,0.8319,4368.5,4368.4,2.26353203]
[1756965201194,0.8319,4368.5,4368.4,2.56453203]
[1756965201401,0.5165,4368.5,4368.4,2.56453203]
[1756965201693,0.315,4368.9,4368.8,0.1935]
[1756965201893,0.5165,4368.9,4368.8,0.9218]
[1756965202596,0.5165,4368.9,4368.8,2.92915089]
[1756965204198,0.315,4368.9,4368.8,2.92915089]
[1756965204793,0.5165,4368.9,4368.8,2.92915089]
[1756965205396,0.7092,4368.9,4368.8,2.62815089]
[1756965205595,0.7092,4368.9,4368.8,0.233]
[1756965205792,0.1227,4368.5,4368.4,0.1943]
[1756965206097,0.1227,4368.5,4368.4,0.9218]
[1756965206098,0.5169,4368.5,4368.4,0.9218]
[1756965206296,0.1203,4369.0,4368.4,2.92915089]
[1756965206500,0.1203,4369.0,4368.5,0.301]
[1756965206799,0.5145,4369.0,4368.9,0.1943]
[1756965207194,1.38075989,4369.0,4368.9,0.1943]
[1756965207720,1.38075989,4369.0,4368.9,0.3878]
[1756965207902,0.8295,4369.0,4368.9,0.3878]
[1756965208101,1.38091233,4369.0,4368.9,0.3878]
[1756965208802,1.38091233,4369.0,4368.9,0.1943]
[1756965209503,1.38091233,4369.0,4368.8,0.233]
[1756965209695,0.8295,4369.0,4368.8,0.233]
[1756965209894,0.8295,4369.0,4368.4,2.00735089]
[1756965210096,0.5165,4368.1,4368.0,0.7888]
[1756965210305,0.5165,4368.1,4368.0,3.02915089]
[1756965210790,0.1227,4368.5,4368.1,0.301]